[Event "ETCC Open 2023"]
[Site "Budva"]
[Date "2023.11.13"]
[Round "3.19"]
[White "Nabaty, Tamir"]
[Black "Bok, Benjamin"]
[Result "1-0"]
[ECO "E36"]
[WhiteElo "2632"]
[BlackElo "2621"]
[Annotator "TA"]
[PlyCount "89"]
[EventDate "2023.11.10"]
[EventType "team-tourn"]
[EventCountry "MNE"]
[SourceTitle "playchess.com"]
[Source "ChessBase"]
[SourceQuality "1"]
[WhiteTeam "Israel"]
[BlackTeam "Netherlands"]
[WhiteTeamCountry "ISR"]
[BlackTeamCountry "NED"]
[TimeControl "40/5400+30:1800+30"]

{[%evp 11,89,0,2,0,0,0,9,10,18,17,4,12,15,16,26,17,41,6,22,15,43,8,21,18,21,28,56,72,65,48,60,32,68,62,68,37,65,56,106,106,93,96,94,87,111,98,120,118,117,125,233,176,479,479,472,445,464,418,1036,1017,29973,29974,29974,29975,29975,29976,29976,29977,29979,29978,29978,29979,29992,29993,29994,29991,29994,29995,29996,812]} 1. d4 {[%emt 0:00:07]} Nf6 {[%emt 0:00:06]} 2. c4 {[%emt 0:00:14]} e6 {[%emt 0:00:04]} 3. Nc3 {[%emt 0:00:28]} Bb4 {[%emt 0:00:07]} 4. Qc2 {[%emt 0:00:06]} d5 {[%emt 0:00:10]} 5. a3 {[%emt 0:00:07]} Bxc3+ {[%emt 0:00:07]} 6. Qxc3 {[%emt 0:00:05]} O-O {[%emt 0:00:14]} 7. e3 {[%emt 0:00:09] E36: Nimzo-Indian: Classical: 4...d5 5 a3.} b6 {[%emt 0:00:27]} 8. Nf3 {[%emt 0:00:10]} Ba6 {[%emt 0:05:33]} 9. b3 {[%emt 0:01:42] The position is equal.} Nbd7 {[%emt 0:02:38]} (9... c5 {with more complications.} 10. dxc5 dxc4 11. Bxc4 Ne4) 10. Be2 {[%emt 0:00:31]} c5 {[%emt 0:00:28]} 11. O-O {[%emt 0:00:28]} Rc8 {[%emt 0:00:29]} 12. a4 {[%emt 0:00:14]} dxc4 {[%emt 0:19:30]} 13. bxc4 {[%emt 0:00:43]} Qc7 {[%emt 0:00:52] [#]} 14. Ba3 $146 {[%emt 0:15:07][%cal Oa4a5]} ({Predecessor:} 14. Bb2 Bb7 15. dxc5 Nxc5 16. a5 Rfd8 17. Nd4 Nce4 18. Qb4 Qc5 19. Qxc5 Nxc5 20. f3 bxa5 21. Rxa5 {1-0 Gareyev,T (2598)-Gordon,S (2495) Sitges Sunway op 6th 2019 (6)}) 14... Rfd8 {[%emt 0:00:55]} (14... Bb7 {is more complex.} 15. Nd2 Rfd8 16. Rfc1 cxd4 17. exd4 Nf8) 15. Rfd1 {[%emt 0:00:28]} (15. Rfc1 {looks sharper.} Ne4 16. Qc2 Bb7 17. a5) 15... h6 {[%emt 0:08:34]} 16. Rac1 {[%emt 0:09:03]} (16. Bb2 {feels hotter.} cxd4 17. Nxd4 Ne4 18. Qc2) 16... cxd4 {[%emt 0:09:30]} (16... Ne4 $5 {[%cal Re4c3]} 17. Qb3 Bb7 $11) 17. exd4 {[%emt 0:02:16]} (17. Nxd4 {keeps more tension.} Nc5 18. Bb4 Bb7 19. Nb5) 17... Qf4 {[%emt 0:09:11]} 18. Qe3 {[%emt 0:16:21]} Qf5 {[%emt 0:04:24]} 19. h3 {[%emt 0:08:57]} (19. Bd3 {is interesting.} Ng4 20. Qd2 Qh5 21. h3) 19... Bb7 {[%emt 0:01:39]} 20. Be7 {[%emt 0:04:12]} Re8 {[%emt 0:01:36]} 21. Bd6 {[%emt 0:00:06][%cal Oa4a5]} Bc6 {[%emt 0:04:32] [#]} 22. a5 $1 {[%emt 0:04:35]} bxa5 {[%emt 0:04:03]} 23. Ne5 {[%emt 0:02:32]} Nxe5 {[%emt 0:13:46]} 24. dxe5 {[%emt 0:01:01]} Nd7 {[%emt 0:00:21] Black is weak on the dark squares. White stays focused until the end.} ({Black should try} 24... Qe4 $14 25. Qxe4 Nxe4) 25. f4 $16 {[%emt 0:05:20]} Qg6 {[%emt 0:03:31][%csl Gc6][%cal Rg6g2]} 26. g4 {[%emt 0:02:08] Active counter play!} f5 {[%emt 0:02:11]} 27. Kh2 {[%emt 0:03:23]} (27. Qxa7 fxg4 28. Qf2 (28. Bd3 $2 Qh5 $19) 28... gxh3+ 29. Kh2 Bg2 $15) 27... fxg4 {[%emt 0:01:14]} 28. Bxg4 {[%emt 0:11:56]} h5 {[%emt 0:03:25]} 29. Bf3 {[%emt 0:00:50]} Bxf3 {[%emt 0:00:06]} 30. Qxf3 {[%emt 0:00:05] Hoping for Rg1.} Nb6 {[%emt 0:01:31]} (30... Kh7 $16 31. Rg1 Qf7) 31. c5 {[%emt 0:06:13] Rg1 would be deadly.} Nd5 $2 {[%emt 0:00:07]} (31... Qf5 {is a better chance.} 32. cxb6 axb6) 32. Rxd5 $18 {[%emt 0:01:12][%mdl 64] Deflection} exd5 {[%emt 0:00:28] [#]} 33. f5 $1 {[%emt 0:00:07]} Qh6 {[%emt 0:04:26]} 34. Rg1 {[%emt 0:00:11] And now f6 would win.} Kh7 {[%emt 0:00:39]} (34... Kh8 $142 35. f6 gxf6 36. exf6 Rg8) 35. f6 {[%emt 0:04:34]} (35. Qxd5 Qf4+ 36. Kh1 Qxf5 $17) 35... gxf6 {[%emt 0:00:26]} 36. Qf5+ {[%emt 0:01:31] White mates.} (36. Qxd5 Rg8 37. Qe4+ Kh8 38. exf6 Rxg1 39. Kxg1 Rg8+ 40. Kf2 Qxf6+ 41. Ke3 Qg5+ 42. Ke2 Qg2+ 43. Qxg2 Rxg2+ $19) 36... Kh8 {[%emt 0:00:00]} 37. Rg6 {[%emt 0:00:22]} Qd2+ {[%emt 0:00:02]} 38. Rg2 {[%emt 0:00:06]} Qh6 {[%emt 0:00:02] [#]} 39. Be7 $1 {[%emt 0:00:52][%mdl 576] Deflection} Rf8 {[%emt 0:01:38]} (39... Rc6 40. Bxf6+) 40. Bxf6+ {[%emt 0:01:14]} Rxf6 {[%emt 0:00:01]} 41. exf6 {[%emt 0:30:08]} Rf8 {[%emt 0:17:34]} 42. f7 {[%emt 0:00:00]} (42. Qxd5 Qf4+ 43. Rg3 Qf2+ 44. Qg2 (44. Rg2 Qf4+ 45. Rg3 Qf2+ 46. Qg2 Rxf6 $11) 44... Qxf6 $11) 42... a4 {[%emt 0:02:48]} 43. c6 {[%emt 0:00:00][%cal Bc5c6,Bc6c7][%mdl 32]} (43. Qxd5 Qf4+ 44. Kh1 (44. Kg1 Qxf7 45. Qd4+ Qf6 $11) 44... Qf1+ 45. Kh2 Qf4+ 46. Kh1 (46. Kg1 Qxf7 47. Qd4+ Qf6 $11) 46... Qf1+ 47. Kh2 Qf4+ $11) 43... a3 {[%emt 0:00:47]} 44. c7 {[%emt 0:00:00]} ({Worse is} 44. Qxd5 Qf4+ 45. Kg1 Qc1+ 46. Kf2 Qf4+ 47. Ke2 Qxf7 48. Qxf7 Rxf7 $11) 44... a2 {[%emt 0:00:36]} 45. Rg8+ {[%emt 0:00:00][%mdl 64] Decoy, Promotion. Magnificent play by Nabaty!   Weighted Error Value: White=0.06 (flawless) /Black=0.37} ({Inferior is} 45. c8=B a1=Q 46. Rg8+ (46. Be6 $2 Qag7 $19) 46... Rxg8 47. fxg8=Q+ Kxg8 $17) 1-0

[Event "ETCC Open 2023"]
[Site "Budva"]
[Date "2023.11.13"]
[Round "3.20"]
[White "Vrolijk, Liam"]
[Black "Postny, Evgeny"]
[Result "1/2-1/2"]
[ECO "A07"]
[WhiteElo "2569"]
[BlackElo "2577"]
[Annotator "TA"]
[PlyCount "133"]
[EventDate "2023.11.10"]
[EventType "team-tourn"]
[EventCountry "MNE"]
[SourceTitle "playchess.com"]
[Source "ChessBase"]
[SourceQuality "1"]
[WhiteTeam "Netherlands"]
[BlackTeam "Israel"]
[WhiteTeamCountry "NED"]
[BlackTeamCountry "ISR"]
[TimeControl "40/5400+30:1800+30"]

{[%evp 9,133,0,8,0,0,0,2,0,4,0,0,0,24,12,29,18,30,28,30,31,23,8,14,16,16,13,13,10,12,15,14,14,16,6,1,0,14,0,0,0,0,-11,0,0,0,0,0,-4,0,0,0,0,0,0,0,0,0,-14,0,0,0,0,0,0,0,0,0,0,0,0,0,0,0,0,0,0,0,0,0,0,0,0,0,0,0,0,8,0,0,0,0,0,0,0,20,0,0,0,20,20,20,20,20,6,6,5,16,8,10,10,9,10,11,8,13,8,8,0,0,0,3,0,2,2,8,0]} 1. Nf3 {[%emt 0:00:05]} d5 {[%emt 0:00:17]} 2. g3 {[%emt 0:00:09]} c6 {[%emt 0:01:59]} 3. Bg2 {[%emt 0:00:10]} Bg4 {[%emt 0:00:06]} 4. h3 {[%emt 0:00:27]} Bxf3 {[%emt 0:00:15]} 5. Bxf3 {[%emt 0:00:10]} Nf6 {[%emt 0:00:46]} 6. d4 {[%emt 0:00:58] A07: Réti Opening: New York and Capablanca Systems.} Nbd7 {[%emt 0:03:31]} 7. O-O {[%emt 0:01:01][%cal Bh1f1,Bf1d1,Bd1d3,Bd3b3][%mdl 32]} e5 {[%emt 0:00:32] [#]} 8. c4 $1 {[%emt 0:00:57]} dxc4 {[%emt 0:18:15]} 9. Nd2 {[%emt 0:00:22]} exd4 {[%emt 0:00:17]} 10. Nxc4 {[%emt 0:00:13]} Nb6 {[%emt 0:01:34]} 11. Qb3 {[%emt 0:02:33]} Be7 {[%emt 0:04:46] [#]} 12. Rd1 $146 {[%emt 0:04:11]} ({Predecessor:} 12. a4 O-O 13. a5 Nxc4 14. Qxc4 Qd7 15. a6 b5 16. Qxc6 Qxh3 17. Bg5 Qf5 18. Bxf6 Bxf6 {½-½ Lysyj,I (2630)-Pershin,D (2392) RUS-chT 25th 2018 (6.6)}) 12... O-O {[%emt 0:00:41]} 13. Kg2 {[%emt 0:02:36]} Nxc4 {[%emt 0:07:29]} 14. Qxc4 {[%emt 0:00:08]} Qb6 {[%emt 0:57:02]} 15. Rd3 {[%emt 0:25:56]} Rad8 {[%emt 0:00:00] The position is equal.} 16. Rb3 $1 {[%emt 0:02:47]} Qc7 {[%emt 0:00:00]} 17. Bf4 {[%emt 0:01:05]} Bd6 {[%emt 0:00:00]} 18. Qxd4 {[%emt 0:04:30]} Bxf4 {[%emt 0:00:00]} 19. Qxf4 {[%emt 0:00:08]} Qxf4 {[%emt 0:00:00]} 20. gxf4 {[%emt 0:00:08]} Rd7 {[%emt 0:00:00]} 21. Rc1 {[%emt 0:02:15]} Re8 {[%emt 0:00:00]} 22. a4 {[%emt 0:05:58]} g6 {[%emt 0:00:00]} 23. Rb4 {[%emt 0:11:47]} Ree7 {[%emt 0:00:00]} 24. Rbc4 {[%emt 0:04:26]} Ne8 {[%emt 0:00:00]} 25. e3 {[%emt 0:04:55]} Nc7 {[%emt 0:00:00]} 26. R1c2 {[%emt 0:05:30]} Kg7 {[%emt 0:00:00]} 27. Rb4 {[%emt 0:01:07]} Ne6 {[%emt 0:00:00]} 28. Re4 {[%emt 0:06:19]} f5 {[%emt 0:00:00]} 29. Rec4 {[%emt 0:02:44]} Nc7 {[%emt 0:00:00]} 30. Rb4 {[%emt 0:00:53]} Ne8 {[%emt 0:00:00]} 31. Rbc4 {[%emt 0:02:20]} Nc7 {[%emt 0:00:11]} 32. Kg3 {[%emt 0:01:20]} Rd6 {[%emt 0:00:59]} 33. Be2 {[%emt 0:00:49]} Rdd7 {[%emt 0:03:29]} 34. Kg2 {[%emt 0:00:53]} Rd6 {[%emt 0:00:38]} 35. Rb4 {[%emt 0:03:20]} Ne8 {[%emt 0:00:09]} 36. Kf1 {[%emt 0:00:49]} Nf6 {[%emt 0:01:07]} 37. Bf3 {[%emt 0:00:30]} Red7 {[%emt 0:01:33]} 38. Ke2 {[%emt 0:00:42]} Ne8 {[%emt 0:00:46]} 39. Ke1 {[%emt 0:01:03]} Kf6 {[%emt 0:00:41]} 40. Be2 {[%emt 0:00:28]} Kg7 {[%emt 0:01:11]} 41. Rbc4 {[%emt 0:32:17]} Nc7 {[%emt 0:03:28]} 42. Rc5 {[%emt 0:00:00]} Ne6 {[%emt 0:00:34]} 43. R5c3 {[%emt 0:00:00]} Nc7 {[%emt 0:02:52]} 44. b4 {[%emt 0:00:00]} a6 {[%emt 0:00:14]} 45. Rb3 {[%emt 0:00:00]} Kf6 {[%emt 0:04:44]} 46. Rb1 {[%emt 0:00:00]} Ke7 {[%emt 0:01:14]} 47. h4 {[%emt 0:00:00]} Kf6 {[%emt 0:00:30]} 48. Rcb2 {[%emt 0:00:00]} Nd5 {[%emt 0:01:00]} 49. Rc1 {[%emt 0:00:00]} Nc7 {[%emt 0:01:28]} 50. Rcc2 {[%emt 0:00:00]} Ke7 {[%emt 0:00:56]} 51. Kf1 {[%emt 0:00:00]} Kf6 {[%emt 0:00:16]} 52. Kg2 {[%emt 0:00:00]} Ke7 {[%emt 0:00:33]} 53. h5 {[%emt 0:00:00]} Kf6 {[%emt 0:00:24]} 54. b5 {[%emt 0:00:00]} cxb5 {[%emt 0:03:25]} 55. axb5 {[%emt 0:00:00]} a5 {[%emt 0:00:35]} 56. hxg6 {[%emt 0:00:00]} hxg6 {[%emt 0:00:09]} 57. b6 {[%emt 0:01:33]} Nd5 {[%emt 0:00:12]} 58. Rc5 {[%emt 0:00:31]} Rxb6 {[%emt 0:04:11]} ({Much less strong is} 58... Nxb6 59. Rxa5 Nc8 60. Bf3 $16) 59. Rxb6+ {[%emt 0:02:08]} Nxb6 {[%emt 0:00:03]} 60. Rxa5 $11 {[%emt 0:00:06][%mdl 4096] Endgame KRB-KRN} Nc8 {[%emt 0:00:35]} 61. Rb5 {[%emt 0:00:24]} Nd6 {[%emt 0:03:39]} 62. Rb4 {[%emt 0:01:23]} Rc7 {[%emt 0:01:12]} 63. Bf3 {[%emt 0:01:47]} b5 {[%emt 0:00:32]} 64. Be2 {[%emt 0:00:08]} Rc5 {[%emt 0:01:13]} 65. Bd3 {[%emt 0:01:22]} Ke6 {[%emt 0:03:26]} 66. Kf3 {[%emt 0:00:14]} Kf6 {[%emt 0:00:25]} 67. Ke2 {[%emt 0:00:15] An interesting draw.   Weighted Error Value: White=0.03 (flawless) /Black=0.03 (flawless)} 1/2-1/2

[Event "ETCC Open 2023"]
[Site "Budva"]
[Date "2023.11.13"]
[Round "3.21"]
[White "Navara, David"]
[Black "Rapport, Richard"]
[Result "1/2-1/2"]
[ECO "E94"]
[WhiteElo "2695"]
[BlackElo "2748"]
[Annotator "TA"]
[PlyCount "91"]
[EventDate "2023.11.10"]
[EventType "team-tourn"]
[EventCountry "MNE"]
[SourceTitle "playchess.com"]
[Source "ChessBase"]
[SourceQuality "1"]
[WhiteTeam "Czech Republic"]
[BlackTeam "Romania"]
[WhiteTeamCountry "CZE"]
[BlackTeamCountry "ROU"]
[TimeControl "40/5400+30:1800+30"]

{[%evp 20,91,38,13,73,76,74,70,53,0,0,1,7,0,0,0,0,0,0,0,25,0,0,0,0,0,0,0,0,0,0,0,0,0,13,13,27,13,54,54,54,54,86,86,205,0,0,0,0,0,0,0,0,0,0,0,0,0,0,0,0,0,0,0,0,0,0,0,0,0,0,0,0,0]} 1. d4 {[%emt 0:00:01]} Nf6 {[%emt 0:00:44]} 2. c4 {[%emt 0:00:06]} g6 {[%emt 0:00:27]} 3. Nc3 {[%emt 0:00:04]} Bg7 {[%emt 0:00:14]} 4. e4 {[%emt 0:00:04]} d6 {[%emt 0:00:07]} 5. Nf3 {[%emt 0:00:04]} O-O {[%emt 0:00:15]} 6. Be2 {[%emt 0:00:01]} e5 {[%emt 0:00:08]} 7. O-O {[%emt 0:00:05]} exd4 {[%emt 0:00:52]} 8. Nxd4 {[%emt 0:00:05]} Re8 {[%emt 0:00:04]} 9. f3 {[%emt 0:00:08]} c6 {[%emt 0:00:05]} 10. Nc2 {[%emt 0:00:05]} Na6 {[%emt 0:00:43]} 11. Kh1 {[%emt 0:00:16]} h6 {[%emt 0:00:13] E94: King's Indian: Classical: 6 Be2 e5 7 0-0: Various Black 7th moves.} (11... Nc7 $1 $11 {remains equal.}) 12. Bf4 $16 {[%emt 0:11:47]} d5 {[%emt 0:03:57]} 13. cxd5 {[%emt 0:00:29]} cxd5 {[%emt 0:00:08] [#] White is slightly better.} 14. Nxd5 $146 {[%emt 0:07:48]} ({White should play} 14. exd5 $14 Nh5 15. Bc1) ({Predecessor:} 14. Bb5 Bd7 15. Bxd7 Qxd7 16. exd5 Rad8 17. d6 Nh5 18. Bg3 Nxg3+ 19. hxg3 Re6 20. Re1 Rxd6 {0-1 Averjanov,A (2399)-Chigaev,M (2628) Titled Tuesday intern op 09th May Late blitz 2023 (5)}) 14... Nxd5 $11 {[%emt 0:01:40]} 15. exd5 {[%emt 0:00:07]} Bd7 {[%emt 0:29:04]} 16. Qd2 {[%emt 0:14:12]} Qf6 {[%emt 0:03:46][%cal Oe8e2]} 17. Bxa6 {[%emt 0:10:56]} (17. Bxh6 $2 {loses.} Bxh6 18. Qd4 Bg7 19. Qxf6 Bxf6 20. Bxa6 bxa6 $19) 17... Qxa6 {[%emt 0:09:24]} 18. Ne3 {[%emt 0:00:33]} (18. Bxh6 $2 {is the wrong capture.} Re2 19. Qd1 Bxh6 $19) 18... Rac8 {[%emt 0:10:22]} 19. d6 {[%emt 0:02:13][%cal Oa2a4]} Qb5 {[%emt 0:14:26]} 20. a4 {[%emt 0:06:46]} (20. Nd5 {with more complications.} Re2 21. a4 Qc4 22. b3) 20... Qxb2 {[%emt 0:08:51]} 21. Qxb2 {[%emt 0:00:17]} Bxb2 {[%emt 0:00:03] This pair of bishops is nice.} 22. Rab1 {[%emt 0:00:22]} Be5 {[%emt 0:02:13]} ({Much less strong is} 22... Bd4 23. Rxb7 Rcd8 24. Nd5 $16) 23. Bxe5 {[%emt 0:01:47]} Rxe5 {[%emt 0:00:01]} 24. Rxb7 {[%emt 0:00:16]} Rxe3 {[%emt 0:00:24]} 25. Rxd7 {[%emt 0:00:06][%mdl 4096] Endgame KRR-KRR} Rd3 {[%emt 0:04:34]} 26. h3 {[%emt 0:00:59]} Rc6 {[%emt 0:04:11]} 27. Rxa7 {[%emt 0:00:15] Black must now prevent d7.} Rcxd6 {[%emt 0:00:08]} 28. Ra1 {[%emt 0:02:33] Hoping for a5.} Rd1+ {[%emt 0:01:43]} 29. Rxd1 {[%emt 0:00:08]} Rxd1+ $14 {[%emt 0:00:02] KR-KR} 30. Kh2 {[%emt 0:00:06] Threatens to win with h4.} Ra1 {[%emt 0:00:11]} 31. h4 {[%emt 0:00:58] aiming for a5. White is more active.} h5 {[%emt 0:00:50] [#]} (31... Ra2 $16 32. Kh3 Kg7) 32. Kg3 $2 {[%emt 0:00:38]} (32. g4 $1 $18) 32... Ra2 $1 $11 {[%emt 0:00:20] The position is equal.} 33. a5 {[%emt 0:02:16]} Kg7 {[%emt 0:00:10]} 34. Ra6 {[%emt 0:00:27]} Ra4 {[%emt 0:00:35]} 35. Ra8 {[%emt 0:01:51]} Kf6 {[%emt 0:00:11]} 36. a6 {[%emt 0:00:23]} Ra2 {[%emt 0:01:28]} 37. Ra7 {[%emt 0:01:14]} Ra4 {[%emt 0:00:09]} 38. f4 {[%emt 0:01:56]} Ra3+ {[%emt 0:00:14]} 39. Kf2 {[%emt 0:00:05]} Ke6 {[%emt 0:01:06]} 40. Ke2 {[%emt 0:01:03]} f6 {[%emt 0:02:29]} 41. Kf2 {[%emt 0:30:45]} Kf5 {[%emt 0:08:11]} 42. g3 {[%emt 0:00:00]} Kg4 {[%emt 0:01:41]} 43. Rg7 {[%emt 0:00:00]} Ra2+ {[%emt 0:00:13]} 44. Ke3 {[%emt 0:00:00]} Ra3+ {[%emt 0:00:05]} 45. Kf2 {[%emt 0:00:00]} Ra2+ {[%emt 0:00:06]} 46. Ke3 {[%emt 0:00:00] Weighted Error Value: White=0.14 (very precise) /Black=0.11 (very precise)} 1/2-1/2

[Event "ETCC Open 2023"]
[Site "Budva"]
[Date "2023.11.13"]
[Round "3.22"]
[White "Deac, Bogdan-Daniel"]
[Black "Nguyen, Thai Dai Van"]
[Result "1/2-1/2"]
[ECO "C50"]
[WhiteElo "2700"]
[BlackElo "2624"]
[Annotator "TA"]
[PlyCount "84"]
[EventDate "2023.11.10"]
[EventType "team-tourn"]
[EventCountry "MNE"]
[SourceTitle "playchess.com"]
[Source "ChessBase"]
[SourceQuality "1"]
[WhiteTeam "Romania"]
[BlackTeam "Czech Republic"]
[WhiteTeamCountry "ROU"]
[BlackTeamCountry "CZE"]
[TimeControl "40/5400+30:1800+30"]

{[%evp 10,84,12,11,18,0,0,0,0,0,15,13,9,-4,0,0,0,0,37,37,37,44,40,33,48,30,31,25,30,30,30,28,38,25,29,38,33,18,25,8,8,0,10,0,33,26,27,18,17,11,18,19,43,0,0,0,0,0,0,0,0,-8,0,0,0,0,0,0,0,0,0,0,0,0,0,0,0]} 1. e4 {[%emt 0:00:03]} e5 {[%emt 0:00:06]} 2. Nf3 {[%emt 0:00:04]} Nc6 {[%emt 0:00:07]} 3. Bc4 {[%emt 0:00:03]} Bc5 {[%emt 0:00:24]} 4. d3 {[%emt 0:00:05]} Nf6 {[%emt 0:00:08]} 5. a4 {[%emt 0:00:05]} d6 {[%emt 0:03:46]} 6. O-O {[%emt 0:00:16]} a6 {[%emt 0:11:32] 6...h6 is the recent fashion. C50: Hungarian Defence and Giuoco Pianissimo.} 7. Be3 {[%emt 0:01:08]} Bxe3 {[%emt 0:04:12]} 8. fxe3 {[%emt 0:00:04]} O-O {[%emt 0:00:31] [#]} 9. Nbd2 $146 {[%emt 0:00:35]} ({Predecessor:} 9. Qe1 Ne7 10. Nh4 Be6 11. Nd2 Qd7 12. Qg3 Bxc4 13. Nxc4 Qg4 14. Qe1 Qe6 15. b3 {½-½ Sevian,S (2698)-Lazavik,D (2553) Aimchess Rapid Div 2 W 2023 (6.2)}) 9... Ne7 {[%emt 0:05:44]} 10. Qe1 {[%emt 0:04:18]} Ng6 {[%emt 0:10:32]} 11. h3 {[%emt 0:00:32]} c6 {[%emt 0:01:34]} 12. a5 {[%emt 0:10:23]} d5 {[%emt 0:05:48]} 13. Bb3 {[%emt 0:00:26]} dxe4 {[%emt 0:07:31]} 14. Nxe4 {[%emt 0:00:19]} Nxe4 {[%emt 0:00:07]} 15. dxe4 {[%emt 0:00:05]} Qe7 {[%emt 0:01:01] Prevents Qb4.} 16. Rd1 {[%emt 0:00:41]} h6 {[%emt 0:08:19]} 17. Qd2 {[%emt 0:18:05] Qd6 is the strong threat.} Be6 {[%emt 0:04:27]} 18. Bxe6 {[%emt 0:00:30]} Qxe6 {[%emt 0:00:07]} 19. Qb4 {[%emt 0:00:12]} Rab8 {[%emt 0:02:59]} 20. Rd2 {[%emt 0:03:28]} Rfe8 {[%emt 0:10:30]} 21. Rfd1 {[%emt 0:08:47]} Nf8 {[%emt 0:02:35] Prevents Rd7.} 22. Rd6 {[%emt 0:04:14]} Qe7 {[%emt 0:00:03]} 23. Qc3 {[%emt 0:11:33]} Rbc8 {[%emt 0:02:45]} 24. R1d3 {[%emt 0:03:25]} Rc7 {[%emt 0:01:08]} 25. Qd2 {[%emt 0:00:18]} Rcc8 {[%emt 0:01:07]} 26. Kh2 {[%emt 0:03:41]} Qc7 {[%emt 0:01:46]} 27. Nh4 {[%emt 0:10:34]} g6 {[%emt 0:02:20] Prevents Nf5.} 28. Nf3 {[%emt 0:01:35]} Re7 {[%emt 0:00:35]} 29. Qb4 {[%emt 0:09:27]} Re6 {[%emt 0:03:49]} 30. Rxe6 {[%emt 0:01:50]} Nxe6 {[%emt 0:00:01]} 31. Qc3 {[%emt 0:06:26]} (31. Qd6 {with more complications.} Nd4 32. Qxc7 Nxf3+ 33. Kg3) 31... Re8 {[%emt 0:02:57] The position is equal.} 32. Kg1 {[%emt 0:00:26]} Nf8 {[%emt 0:00:54][%cal Be6f8,Bf8d7,Bd7f6][%mdl 32]} 33. Nd2 {[%emt 0:01:17]} Nd7 {[%emt 0:00:29]} 34. Nc4 {[%emt 0:02:03]} Re6 {[%emt 0:02:20]} 35. Nd2 {[%emt 0:00:27]} Nf6 {[%emt 0:02:47]} 36. Qc5 {[%emt 0:00:08]} Nd7 {[%emt 0:00:42]} 37. Qc4 {[%emt 0:00:46]} Kg7 {[%emt 0:01:33]} 38. Nb3 {[%emt 0:00:37]} Re7 {[%emt 0:00:01]} 39. Nc5 {[%emt 0:00:31]} Nxc5 {[%emt 0:01:20]} 40. Qxc5 {[%emt 0:00:02]} Re6 {[%emt 0:01:02]} 41. b4 {[%emt 0:30:25]} Qe7 {[%emt 0:04:30]} 42. Qxe7 {[%emt 0:00:00]} Rxe7 {[%emt 0:00:08] Weighted Error Value: White=0.04 (flawless) /Black=0.04 (flawless)} 1/2-1/2